[Event "Titled Tuesday Blitz October 25 Late 2022"]
[White "Adla, Diego"]
[Black "Buchenau, Frank"]
[WhiteFideId "100072"]
[BlackFideId "4604350"]
[WhiteElo "2377"]
[BlackElo "2157"]
[Result "1-0"]
[Round "03"]
[TimeControl "180+1"]
[Date "2022.10.26"]
[WhiteClock "0:01:34"]
[BlackClock "0:00:09"]

1. c4 {[%clk 0:03:00]}  e5 {[%clk 0:02:59]} 2. Nc3 {[%clk 0:03:00]}  Nf6 {[%clk 0:02:59]} 3. Nf3 {[%clk 0:03:00]}  Nc6 {[%clk 0:02:59]} 4. e4 {[%clk 0:03:00]}  Bb4 {[%clk 0:02:58]} 5. d3 {[%clk 0:03:00]}  d6 {[%clk 0:02:58]} 6. Be2 {[%clk 0:03:00]}  a6 {[%clk 0:02:58]} 7. O-O {[%clk 0:03:00]}  Bc5 {[%clk 0:02:58]} 8. Nd2 {[%clk 0:02:59]}  O-O {[%clk 0:02:56]} 9. Nb3 {[%clk 0:02:59]}  Ba7 {[%clk 0:02:53]} 10. Kh1 {[%clk 0:02:59]}  Ne8 {[%clk 0:02:28]} 11. f4 {[%clk 0:02:57]}  f5 {[%clk 0:02:28]} 12. exf5 {[%clk 0:02:38]}  Bxf5 {[%clk 0:02:25]} 13. g4 {[%clk 0:02:34]}  Bd7 {[%clk 0:02:20]} 14. f5 {[%clk 0:02:34]}  Qh4 {[%clk 0:02:11]} 15. Qe1 {[%clk 0:02:22]}  Qxe1 {[%clk 0:02:07]} 16. Rxe1 {[%clk 0:02:22]}  h5 {[%clk 0:01:50]} 17. h3 {[%clk 0:02:18]}  hxg4 {[%clk 0:01:44]} 18. hxg4 {[%clk 0:02:17]}  Nb4 {[%clk 0:01:36]} 19. Rf1 {[%clk 0:02:13]}  Nc2 {[%clk 0:01:29]} 20. Rb1 {[%clk 0:02:12]}  b5 {[%clk 0:01:10]} 21. Bf3 {[%clk 0:02:05]}  Rb8 {[%clk 0:01:09]} 22. Bd5+ {[%clk 0:01:54]}  Kh7 {[%clk 0:00:35]} 23. Kg2 {[%clk 0:01:54]}  g5 {[%clk 0:00:29]} 24. fxg6+ {[%clk 0:01:49]}  Kg7 {[%clk 0:00:25]} 25. Rxf8 {[%clk 0:01:49]}  Kxf8 {[%clk 0:00:24]} 26. Bh6+ {[%clk 0:01:50]}  Ke7 {[%clk 0:00:20]} 27. Rf1 {[%clk 0:01:50]}  Ne3+ {[%clk 0:00:17]} 28. Bxe3 {[%clk 0:01:49]}  Bxe3 {[%clk 0:00:17]} 29. Rf7+ {[%clk 0:01:49]}  Kd8 {[%clk 0:00:17]} 30. g7 {[%clk 0:01:48]}  Nxg7 {[%clk 0:00:16]} 31. Rxg7 {[%clk 0:01:49]}  c6 {[%clk 0:00:14]} 32. Rg8+ {[%clk 0:01:47]}  Kc7 {[%clk 0:00:14]} 33. Rxb8 {[%clk 0:01:47]}  Kxb8 {[%clk 0:00:15]} 34. Bf3 {[%clk 0:01:48]}  bxc4 {[%clk 0:00:12]} 35. dxc4 {[%clk 0:01:47]}  Be6 {[%clk 0:00:11]} 36. Ne4 {[%clk 0:01:43]}  d5 {[%clk 0:00:10]} 37. cxd5 {[%clk 0:01:43]}  cxd5 {[%clk 0:00:10]} 38. Nec5 {[%clk 0:01:43]}  Bf7 {[%clk 0:00:09]} 39. Nxa6+ {[%clk 0:01:42]}  Ka7 {[%clk 0:00:09]} 40. Nb4 {[%clk 0:01:42]}  e4 {[%clk 0:00:09]} 41. Be2 {[%clk 0:01:36]}  Kb6 {[%clk 0:00:09]} 42. Nc2 {[%clk 0:01:34]} 1-0


[Site "https://www.chess.com"]

[Event "Titled Tuesday Blitz October 25 Late 2022"]
[White "Al Hosani, Omran"]
[Black "Kollars, Dmitrij"]
[WhiteFideId "9308733"]
[BlackFideId "12909572"]
[WhiteElo "2167"]
[BlackElo "2584"]
[Result "0-1"]
[Round "03"]
[TimeControl "180+1"]
[Date "2022.10.26"]
[WhiteClock "0:00:01"]
[BlackClock "0:00:19"]

1. d4 {[%clk 0:02:59]}  d5 {[%clk 0:02:58]} 2. c4 {[%clk 0:02:59]}  e6 {[%clk 0:02:57]} 3. Nc3 {[%clk 0:02:54]}  c5 {[%clk 0:02:57]} 4. Nf3 {[%clk 0:02:52]}  cxd4 {[%clk 0:02:57]} 5. Nxd4 {[%clk 0:02:52]}  e5 {[%clk 0:02:53]} 6. Nf3 {[%clk 0:02:52]}  d4 {[%clk 0:02:51]} 7. Nxe5 {[%clk 0:02:43]}  dxc3 {[%clk 0:02:32]} 8. Qxd8+ {[%clk 0:02:36]}  Kxd8 {[%clk 0:02:33]} 9. Nxf7+ {[%clk 0:02:37]}  Ke8 {[%clk 0:02:34]} 10. Nxh8 {[%clk 0:02:37]}  Bb4 {[%clk 0:02:35]} 11. Kd1 {[%clk 0:02:31]}  Bf5 {[%clk 0:02:35]} 12. e4 {[%clk 0:02:13]}  Bxe4 {[%clk 0:02:32]} 13. a3 {[%clk 0:02:10]}  Ba5 {[%clk 0:02:18]} 14. f3 {[%clk 0:01:52]}  Bf5 {[%clk 0:02:13]} 15. c5 {[%clk 0:01:42]}  c2+ {[%clk 0:02:05]} 16. Ke2 {[%clk 0:01:42]}  Nf6 {[%clk 0:01:55]} 17. b4 {[%clk 0:01:36]}  Bc7 {[%clk 0:01:56]} 18. Bb2 {[%clk 0:01:35]}  Nc6 {[%clk 0:01:55]} 19. Kf2 {[%clk 0:01:29]}  Kf8 {[%clk 0:01:23]} 20. Bc4 {[%clk 0:01:21]}  Be5 {[%clk 0:01:22]} 21. Bxe5 {[%clk 0:00:42]}  Nxe5 {[%clk 0:01:23]} 22. Bb3 {[%clk 0:00:41]}  a5 {[%clk 0:01:06]} 23. g4 {[%clk 0:00:34]}  a4 {[%clk 0:00:50]} 24. Ba2 {[%clk 0:00:06]}  Bd7 {[%clk 0:00:51]} 25. Ke3 {[%clk 0:00:04]}  Re8 {[%clk 0:00:45]} 26. Kd2 {[%clk 0:00:03]}  Nxf3+ {[%clk 0:00:41]} 27. Kxc2 {[%clk 0:00:04]}  Nxg4 {[%clk 0:00:40]} 28. Raf1 {[%clk 0:00:02]}  Ne3+ {[%clk 0:00:38]} 29. Kb2 {[%clk 0:00:02]}  Nxf1 {[%clk 0:00:37]} 30. Rxf1 {[%clk 0:00:03]}  Bc6 {[%clk 0:00:32]} 31. b5 {[%clk 0:00:03]}  Re2+ {[%clk 0:00:31]} 32. Ka1 {[%clk 0:00:03]}  Be4 {[%clk 0:00:27]} 33. Bb1 {[%clk 0:00:02]}  Bd5 {[%clk 0:00:24]} 34. c6 {[%clk 0:00:01]}  bxc6 {[%clk 0:00:23]} 35. b6 {[%clk 0:00:01]}  Re8 {[%clk 0:00:19]} 0-1


[Site "https://www.chess.com"]

[Event "Titled Tuesday Blitz October 25 Late 2022"]
[White "Annaberdiyev, Babageldi"]
[Black "Ferreira, Vitor Hugo Vieira"]
[WhiteFideId "14000385"]
[BlackFideId "2119765"]
[WhiteElo "2332"]
[BlackElo "2168"]
[Result "1-0"]
[Round "03"]
[TimeControl "180+1"]
[Date "2022.10.26"]
[WhiteClock "0:00:32"]
[BlackClock "0:01:08"]

1. e4 {[%clk 0:03:00]}  c6 {[%clk 0:02:57]} 2. d4 {[%clk 0:03:00]}  d5 {[%clk 0:02:57]} 3. Nd2 {[%clk 0:03:00]}  dxe4 {[%clk 0:02:57]} 4. Nxe4 {[%clk 0:03:01]}  Nf6 {[%clk 0:02:58]} 5. Nxf6+ {[%clk 0:02:59]}  exf6 {[%clk 0:02:58]} 6. Bc4 {[%clk 0:02:59]}  Be7 {[%clk 0:02:56]} 7. Qh5 {[%clk 0:02:42]}  O-O {[%clk 0:02:55]} 8. Nf3 {[%clk 0:02:39]}  Nd7 {[%clk 0:02:53]} 9. O-O {[%clk 0:02:31]}  Nb6 {[%clk 0:02:53]} 10. Bd3 {[%clk 0:02:25]}  g6 {[%clk 0:02:52]} 11. Qh6 {[%clk 0:02:22]}  Re8 {[%clk 0:02:51]} 12. h3 {[%clk 0:02:17]}  Bf8 {[%clk 0:02:50]} 13. Qh4 {[%clk 0:02:14]}  Be6 {[%clk 0:02:47]} 14. Bh6 {[%clk 0:02:10]}  Bd5 {[%clk 0:02:42]} 15. c3 {[%clk 0:02:00]}  Bxf3 {[%clk 0:02:41]} 16. gxf3 {[%clk 0:02:01]}  Qd5 {[%clk 0:02:39]} 17. Bxf8 {[%clk 0:01:59]}  Rxf8 {[%clk 0:02:39]} 18. Qxf6 {[%clk 0:01:56]}  Qh5 {[%clk 0:02:18]} 19. Rfe1 {[%clk 0:01:45]}  Nd5 {[%clk 0:02:10]} 20. Qe5 {[%clk 0:01:42]}  Qxh3 {[%clk 0:02:10]} 21. Qg3 {[%clk 0:01:40]}  Qxg3+ {[%clk 0:02:06]} 22. fxg3 {[%clk 0:01:41]}  Rfe8 {[%clk 0:02:06]} 23. Kf2 {[%clk 0:01:27]}  Rxe1 {[%clk 0:02:06]} 24. Rxe1 {[%clk 0:01:27]}  Kf8 {[%clk 0:02:06]} 25. Be4 {[%clk 0:01:22]}  Re8 {[%clk 0:02:05]} 26. c4 {[%clk 0:01:16]}  Nf6 {[%clk 0:02:05]} 27. b4 {[%clk 0:01:14]}  Nxe4+ {[%clk 0:02:03]} 28. fxe4 {[%clk 0:01:13]}  f6 {[%clk 0:01:58]} 29. g4 {[%clk 0:01:11]}  Kg7 {[%clk 0:01:53]} 30. Kf3 {[%clk 0:01:08]}  Kh6 {[%clk 0:01:53]} 31. Rh1+ {[%clk 0:01:04]}  Kg7 {[%clk 0:01:53]} 32. a4 {[%clk 0:01:02]}  a6 {[%clk 0:01:52]} 33. d5 {[%clk 0:01:01]}  cxd5 {[%clk 0:01:50]} 34. exd5 {[%clk 0:00:57]}  Rd8 {[%clk 0:01:47]} 35. Rd1 {[%clk 0:00:56]}  f5 {[%clk 0:01:37]} 36. c5 {[%clk 0:00:52]}  fxg4+ {[%clk 0:01:37]} 37. Kxg4 {[%clk 0:00:52]}  Kf6 {[%clk 0:01:36]} 38. d6 {[%clk 0:00:50]}  h5+ {[%clk 0:01:31]} 39. Kh4 {[%clk 0:00:49]}  Ke5 {[%clk 0:01:30]} 40. Kg5 {[%clk 0:00:48]}  Ke4 {[%clk 0:01:23]} 41. b5 {[%clk 0:00:45]}  axb5 {[%clk 0:01:23]} 42. axb5 {[%clk 0:00:46]}  Ke5 {[%clk 0:01:19]} 43. d7 {[%clk 0:00:44]}  h4 {[%clk 0:01:15]} 44. c6 {[%clk 0:00:41]}  bxc6 {[%clk 0:01:14]} 45. bxc6 {[%clk 0:00:42]}  h3 {[%clk 0:01:15]} 46. c7 {[%clk 0:00:30]}  Rxd7 {[%clk 0:01:08]} 47. Rxd7 {[%clk 0:00:31]}  h2 {[%clk 0:01:08]} 48. Rh7 {[%clk 0:00:32]} 1-0


[Site "https://www.chess.com"]

[Event "Titled Tuesday Blitz October 25 Late 2022"]
[White "Barash, Anton"]
[Black "Gogolev, Artem"]
[WhiteFideId "30935229"]
[BlackFideId "4116615"]
[WhiteElo "2284"]
[BlackElo "2178"]
[Result "0-1"]
[Round "03"]
[TimeControl "180+1"]
[Date "2022.10.26"]
[WhiteClock "0:00:23"]
[BlackClock "0:00:34"]

1. e4 {[%clk 0:03:00]}  c6 {[%clk 0:02:59]} 2. d4 {[%clk 0:03:00]}  d5 {[%clk 0:02:51]} 3. Nc3 {[%clk 0:03:00]}  dxe4 {[%clk 0:02:51]} 4. f3 {[%clk 0:03:00]}  e5 {[%clk 0:02:44]} 5. dxe5 {[%clk 0:03:00]}  Qxd1+ {[%clk 0:02:42]} 6. Nxd1 {[%clk 0:03:01]}  exf3 {[%clk 0:02:39]} 7. Nxf3 {[%clk 0:03:01]}  Be6 {[%clk 0:02:37]} 8. Ne3 {[%clk 0:02:53]}  Nd7 {[%clk 0:02:36]} 9. Bc4 {[%clk 0:02:52]}  Bxc4 {[%clk 0:02:30]} 10. Nxc4 {[%clk 0:02:53]}  Bc5 {[%clk 0:02:29]} 11. Ke2 {[%clk 0:02:51]}  Ne7 {[%clk 0:02:29]} 12. Be3 {[%clk 0:02:48]}  Nd5 {[%clk 0:02:15]} 13. Bxc5 {[%clk 0:02:27]}  Nxc5 {[%clk 0:02:16]} 14. Rhe1 {[%clk 0:02:18]}  a5 {[%clk 0:01:53]} 15. Nd6+ {[%clk 0:02:12]}  Ke7 {[%clk 0:01:51]} 16. Nf5+ {[%clk 0:02:08]}  Kd7 {[%clk 0:01:36]} 17. Rad1 {[%clk 0:02:00]}  b5 {[%clk 0:01:36]} 18. Ne3 {[%clk 0:01:52]}  Rad8 {[%clk 0:01:23]} 19. Nxd5 {[%clk 0:01:34]}  cxd5 {[%clk 0:01:24]} 20. Rxd5+ {[%clk 0:01:34]}  Kc6 {[%clk 0:01:23]} 21. Rxd8 {[%clk 0:01:32]}  Rxd8 {[%clk 0:01:24]} 22. Ng5 {[%clk 0:01:29]}  Re8 {[%clk 0:00:55]} 23. Kf1 {[%clk 0:00:51]}  h6 {[%clk 0:00:54]} 24. Nxf7 {[%clk 0:00:43]}  Rf8 {[%clk 0:00:48]} 25. e6 {[%clk 0:00:44]}  Nxe6 {[%clk 0:00:34]} 26. Rxe6+ {[%clk 0:00:43]}  Kd7 {[%clk 0:00:35]} 27. Rc6 {[%clk 0:00:23]}  Kxc6 {[%clk 0:00:34]} 0-1


[Site "https://www.chess.com"]

[Event "Titled Tuesday Blitz October 25 Late 2022"]
[White "Becerra, Juan David"]
[Black "Kabanova, Ekaterina"]
[WhiteFideId "4404998"]
[BlackFideId "24112917"]
[WhiteElo "2278"]
[BlackElo "2141"]
[Result "0-1"]
[Round "03"]
[TimeControl "180+1"]
[Date "2022.10.26"]
[WhiteClock "0:00:02"]
[BlackClock "0:01:28"]

1. d4 {[%clk 0:02:59]}  c5 {[%clk 0:03:00]} 2. e3 {[%clk 0:02:58]}  e6 {[%clk 0:03:00]} 3. Nc3 {[%clk 0:02:58]}  a6 {[%clk 0:03:01]} 4. a4 {[%clk 0:02:55]}  Nf6 {[%clk 0:03:01]} 5. Nf3 {[%clk 0:02:51]}  b6 {[%clk 0:03:01]} 6. e4 {[%clk 0:02:37]}  cxd4 {[%clk 0:03:00]} 7. Nxd4 {[%clk 0:02:38]}  Qc7 {[%clk 0:02:59]} 8. Bd2 {[%clk 0:02:27]}  Bb7 {[%clk 0:03:00]} 9. Bd3 {[%clk 0:02:27]}  d6 {[%clk 0:02:59]} 10. O-O {[%clk 0:02:26]}  Nbd7 {[%clk 0:02:59]} 11. Kh1 {[%clk 0:02:15]}  Be7 {[%clk 0:02:58]} 12. f4 {[%clk 0:02:15]}  h5 {[%clk 0:02:57]} 13. e5 {[%clk 0:02:02]}  dxe5 {[%clk 0:02:52]} 14. fxe5 {[%clk 0:01:59]}  Qxe5 {[%clk 0:02:52]} 15. Nf3 {[%clk 0:01:53]}  Qc7 {[%clk 0:02:51]} 16. Qe2 {[%clk 0:01:42]}  Bc5 {[%clk 0:02:47]} 17. Ne4 {[%clk 0:01:36]}  Nxe4 {[%clk 0:02:47]} 18. Bxe4 {[%clk 0:01:37]}  Nf6 {[%clk 0:02:47]} 19. Bxb7 {[%clk 0:01:26]}  Qxb7 {[%clk 0:02:48]} 20. Bc3 {[%clk 0:01:26]}  h4 {[%clk 0:02:38]} 21. Ng5 {[%clk 0:01:18]}  Be7 {[%clk 0:02:30]} 22. Rad1 {[%clk 0:01:10]}  h3 {[%clk 0:02:28]} 23. Rf3 {[%clk 0:00:47]}  hxg2+ {[%clk 0:02:26]} 24. Qxg2 {[%clk 0:00:48]}  Rd8 {[%clk 0:02:08]} 25. Rxd8+ {[%clk 0:00:41]}  Bxd8 {[%clk 0:02:09]} 26. Kg1 {[%clk 0:00:36]}  b5 {[%clk 0:02:07]} 27. Kf1 {[%clk 0:00:24]}  b4 {[%clk 0:02:03]} 28. Bd4 {[%clk 0:00:20]}  Qd5 {[%clk 0:02:00]} 29. c3 {[%clk 0:00:16]}  bxc3 {[%clk 0:01:59]} 30. bxc3 {[%clk 0:00:17]}  Rh4 {[%clk 0:01:51]} 31. Nxf7 {[%clk 0:00:11]}  Qc4+ {[%clk 0:01:46]} 32. Kf2 {[%clk 0:00:07]}  Kxf7 {[%clk 0:01:45]} 33. Rxf6+ {[%clk 0:00:04]}  gxf6 {[%clk 0:01:36]} 34. Qb7+ {[%clk 0:00:02]}  Be7 {[%clk 0:01:36]} 35. Qf3 {[%clk 0:00:03]}  Rxh2+ {[%clk 0:01:30]} 36. Kg3 {[%clk 0:00:04]}  Qc7+ {[%clk 0:01:29]} 37. Kg4 {[%clk 0:00:02]}  f5+ {[%clk 0:01:28]} 0-1


[Site "https://www.chess.com"]

[Event "Titled Tuesday Blitz October 25 Late 2022"]
[White "Besedes, Danilo"]
[Black "Bogaudinov, Rushan"]
[WhiteFideId "946796"]
[BlackFideId "4129288"]
[WhiteElo "2352"]
[BlackElo "1945"]
[Result "0-1"]
[Round "03"]
[TimeControl "180+1"]
[Date "2022.10.26"]
[WhiteClock "0:00:06"]
[BlackClock "0:01:10"]

1. c3 {[%clk 0:02:47]}  d6 {[%clk 0:02:59]} 2. d3 {[%clk 0:02:47]}  e5 {[%clk 0:02:57]} 3. e4 {[%clk 0:02:47]}  f5 {[%clk 0:02:56]} 4. Nf3 {[%clk 0:02:46]}  Nf6 {[%clk 0:02:55]} 5. Qc2 {[%clk 0:02:45]}  Be7 {[%clk 0:02:50]} 6. Be2 {[%clk 0:02:45]}  O-O {[%clk 0:02:50]} 7. h3 {[%clk 0:02:42]}  Nc6 {[%clk 0:02:49]} 8. Bg5 {[%clk 0:02:28]}  h6 {[%clk 0:02:48]} 9. Bxf6 {[%clk 0:02:28]}  Bxf6 {[%clk 0:02:49]} 10. Nbd2 {[%clk 0:02:26]}  a5 {[%clk 0:02:48]} 11. a4 {[%clk 0:02:26]}  Be6 {[%clk 0:02:43]} 12. Nc4 {[%clk 0:02:05]}  d5 {[%clk 0:02:36]} 13. exd5 {[%clk 0:01:51]}  Qxd5 {[%clk 0:02:34]} 14. Rd1 {[%clk 0:01:49]}  Rae8 {[%clk 0:02:28]} 15. O-O {[%clk 0:01:47]}  b6 {[%clk 0:02:25]} 16. Nfd2 {[%clk 0:01:37]}  Ne7 {[%clk 0:02:17]} 17. Bf3 {[%clk 0:01:36]}  Qd7 {[%clk 0:02:17]} 18. Rfe1 {[%clk 0:01:35]}  Ng6 {[%clk 0:02:14]} 19. Bh5 {[%clk 0:01:30]}  Bf7 {[%clk 0:02:10]} 20. Nf3 {[%clk 0:01:30]}  Qd5 {[%clk 0:01:45]} 21. Ne3 {[%clk 0:00:58]}  Qd7 {[%clk 0:01:44]} 22. Nc4 {[%clk 0:00:49]}  Nf4 {[%clk 0:01:32]} 23. Bxf7+ {[%clk 0:00:46]}  Rxf7 {[%clk 0:01:33]} 24. Ncxe5 {[%clk 0:00:46]}  Bxe5 {[%clk 0:01:31]} 25. Nxe5 {[%clk 0:00:10]}  Qd5 {[%clk 0:01:29]} 26. Nf3 {[%clk 0:00:10]}  Rxe1+ {[%clk 0:01:26]} 27. Nxe1 {[%clk 0:00:11]}  Re7 {[%clk 0:01:24]} 28. f3 {[%clk 0:00:11]}  Re2 {[%clk 0:01:22]} 29. Qc1 {[%clk 0:00:11]}  Nxg2 {[%clk 0:01:10]} 30. Nxg2 {[%clk 0:00:06]}  Qxf3 {[%clk 0:01:10]} 0-1


[Site "https://www.chess.com"]

[Event "Titled Tuesday Blitz October 25 Late 2022"]
[White "Bettalli, Francesco"]
[Black "Sala, Giulia"]
[WhiteFideId "2816453"]
[BlackFideId "2840451"]
[WhiteElo "2216"]
[BlackElo "1769"]
[Result "0-1"]
[Round "03"]
[TimeControl "180+1"]
[Date "2022.10.26"]
[WhiteClock "0:01:33"]
[BlackClock "0:01:16"]

1. d4 {[%clk 0:02:58]}  d6 {[%clk 0:02:55]} 2. c4 {[%clk 0:02:54]}  g6 {[%clk 0:02:55]} 3. h4 {[%clk 0:02:54]}  h5 {[%clk 0:02:54]} 4. Nf3 {[%clk 0:02:53]}  Bg7 {[%clk 0:02:54]} 5. Nc3 {[%clk 0:02:54]}  Nd7 {[%clk 0:02:53]} 6. e4 {[%clk 0:02:54]}  Ngf6 {[%clk 0:02:53]} 7. Bg5 {[%clk 0:02:53]}  c6 {[%clk 0:02:47]} 8. e5 {[%clk 0:02:53]}  dxe5 {[%clk 0:02:46]} 9. dxe5 {[%clk 0:02:54]}  Ng4 {[%clk 0:02:46]} 10. e6 {[%clk 0:02:55]}  fxe6 {[%clk 0:02:45]} 11. Ne4 {[%clk 0:02:54]}  Ndf6 {[%clk 0:02:44]} 12. Qxd8+ {[%clk 0:02:52]}  Kxd8 {[%clk 0:02:45]} 13. O-O-O+ {[%clk 0:02:52]}  Kc7 {[%clk 0:02:45]} 14. Bf4+ {[%clk 0:02:52]}  e5 {[%clk 0:02:31]} 15. Nxe5 {[%clk 0:02:41]}  Nxe4 {[%clk 0:02:31]} 16. Nxg4+ {[%clk 0:02:41]}  Nd6 {[%clk 0:02:31]} 17. c5 {[%clk 0:02:40]}  Bxg4 {[%clk 0:02:31]} 18. cxd6+ {[%clk 0:02:40]}  exd6 {[%clk 0:02:30]} 19. Rxd6 {[%clk 0:02:38]}  Rhd8 {[%clk 0:02:08]} 20. Rxg6+ {[%clk 0:02:35]}  Kb6 {[%clk 0:02:06]} 21. Be3+ {[%clk 0:02:34]}  Bd4 {[%clk 0:02:04]} 22. Bc4 {[%clk 0:02:13]}  Bxe3+ {[%clk 0:02:03]} 23. fxe3 {[%clk 0:02:14]}  Re8 {[%clk 0:02:00]} 24. Re1 {[%clk 0:02:14]}  Re4 {[%clk 0:01:59]} 25. Bd3 {[%clk 0:02:14]}  Ra4 {[%clk 0:01:58]} 26. a3 {[%clk 0:02:13]}  Rd8 {[%clk 0:01:56]} 27. Bc2 {[%clk 0:02:12]}  Rc4 {[%clk 0:01:56]} 28. b3 {[%clk 0:02:12]}  Rxc2+ {[%clk 0:01:56]} 29. Kxc2 {[%clk 0:02:09]}  Bf5+ {[%clk 0:01:56]} 30. e4 {[%clk 0:02:09]}  Bxg6 {[%clk 0:01:56]} 31. Kc3 {[%clk 0:02:09]}  Kc5 {[%clk 0:01:55]} 32. e5 {[%clk 0:02:07]}  Re8 {[%clk 0:01:54]} 33. b4+ {[%clk 0:02:04]}  Kd5 {[%clk 0:01:54]} 34. Rd1+ {[%clk 0:02:04]}  Kxe5 {[%clk 0:01:52]} 35. Rd7 {[%clk 0:02:05]}  Kf4 {[%clk 0:01:43]} 36. Rxb7 {[%clk 0:02:04]}  Re3+ {[%clk 0:01:39]} 37. Kb2 {[%clk 0:02:02]}  Re2+ {[%clk 0:01:39]} 38. Kb3 {[%clk 0:02:02]}  Rxg2 {[%clk 0:01:37]} 39. Rxa7 {[%clk 0:02:02]}  Rh2 {[%clk 0:01:36]} 40. a4 {[%clk 0:02:01]}  Rxh4 {[%clk 0:01:35]} 41. a5 {[%clk 0:02:02]}  Rh3+ {[%clk 0:01:35]} 42. Kc4 {[%clk 0:02:00]}  Bd3+ {[%clk 0:01:34]} 43. Kc5 {[%clk 0:01:53]}  Rg3 {[%clk 0:01:34]} 44. Rf7+ {[%clk 0:01:51]}  Ke3 {[%clk 0:01:33]} 45. Kxc6 {[%clk 0:01:48]}  h4 {[%clk 0:01:34]} 46. Rf6 {[%clk 0:01:43]}  h3 {[%clk 0:01:30]} 47. Rh6 {[%clk 0:01:34]}  Rg6+ {[%clk 0:01:30]} 48. Rxg6 {[%clk 0:01:34]}  Bxg6 {[%clk 0:01:31]} 49. b5 {[%clk 0:01:34]}  h2 {[%clk 0:01:30]} 50. Kb6 {[%clk 0:01:33]}  h1=Q {[%clk 0:01:30]} 51. Ka7 {[%clk 0:01:33]}  Qd5 {[%clk 0:01:24]} 52. Ka6 {[%clk 0:01:33]}  Bf5 {[%clk 0:01:22]} 53. Kb6 {[%clk 0:01:31]}  Bd7 {[%clk 0:01:21]} 54. a6 {[%clk 0:01:30]}  Qxb5+ {[%clk 0:01:21]} 55. Ka7 {[%clk 0:01:31]}  Bc8 {[%clk 0:01:16]} 56. Ka8 {[%clk 0:01:32]}  Qxa6+ {[%clk 0:01:16]} 57. Kb8 {[%clk 0:01:33]}  Qb7# {[%clk 0:01:16]} 0-1


[Site "https://www.chess.com"]

[Event "Titled Tuesday Blitz October 25 Late 2022"]
[White "Bongo Akanga Ndjila, Barthelemy"]
[Black "Hoffmann, Asa"]
[WhiteFideId "10609431"]
[BlackFideId "2001470"]
[WhiteElo "1768"]
[BlackElo "2117"]
[Result "0-1"]
[Round "03"]
[TimeControl "180+1"]
[Date "2022.10.26"]
[WhiteClock "0:00:57"]
[BlackClock "0:00:41"]

1. d4 {[%clk 0:03:00]}  Nf6 {[%clk 0:02:53]} 2. c4 {[%clk 0:03:00]}  c5 {[%clk 0:02:52]} 3. d5 {[%clk 0:03:00]}  e5 {[%clk 0:02:47]} 4. Nc3 {[%clk 0:02:59]}  d6 {[%clk 0:02:45]} 5. e4 {[%clk 0:02:59]}  Be7 {[%clk 0:02:44]} 6. h3 {[%clk 0:03:00]}  Nbd7 {[%clk 0:02:43]} 7. Nf3 {[%clk 0:03:00]}  Nf8 {[%clk 0:02:43]} 8. Bd3 {[%clk 0:03:00]}  Ng6 {[%clk 0:02:43]} 9. O-O {[%clk 0:02:58]}  O-O {[%clk 0:02:42]} 10. Kh2 {[%clk 0:02:57]}  Nh5 {[%clk 0:02:40]} 11. Rg1 {[%clk 0:02:56]}  Nhf4 {[%clk 0:02:37]} 12. Bf1 {[%clk 0:02:56]}  f5 {[%clk 0:02:36]} 13. g3 {[%clk 0:02:56]}  fxe4 {[%clk 0:02:34]} 14. Nxe4 {[%clk 0:02:53]}  Nh5 {[%clk 0:02:27]} 15. Nfg5 {[%clk 0:02:49]}  Nf6 {[%clk 0:02:18]} 16. Bd3 {[%clk 0:02:33]}  Nxe4 {[%clk 0:02:04]} 17. Nxe4 {[%clk 0:02:32]}  Bf5 {[%clk 0:01:58]} 18. Be3 {[%clk 0:02:26]}  Qd7 {[%clk 0:01:57]} 19. g4 {[%clk 0:02:23]}  Bxe4 {[%clk 0:01:56]} 20. Bxe4 {[%clk 0:02:22]}  Nf4 {[%clk 0:01:56]} 21. Qc2 {[%clk 0:02:17]}  h6 {[%clk 0:01:42]} 22. Bh7+ {[%clk 0:02:14]}  Kh8 {[%clk 0:01:41]} 23. Bxf4 {[%clk 0:02:10]}  Rxf4 {[%clk 0:01:37]} 24. Bf5 {[%clk 0:02:11]}  Qc7 {[%clk 0:01:33]} 25. b3 {[%clk 0:02:08]}  Rf8 {[%clk 0:01:31]} 26. Rg2 {[%clk 0:02:05]}  Bh4 {[%clk 0:01:29]} 27. Rf1 {[%clk 0:02:02]}  Qe7 {[%clk 0:01:25]} 28. Be4 {[%clk 0:01:58]}  Qf6 {[%clk 0:01:21]} 29. f3 {[%clk 0:01:57]}  a6 {[%clk 0:01:16]} 30. a4 {[%clk 0:01:53]}  b6 {[%clk 0:01:15]} 31. Rgg1 {[%clk 0:01:39]}  Qg5 {[%clk 0:01:13]} 32. Bf5 {[%clk 0:01:34]}  Rd4 {[%clk 0:01:07]} 33. Be4 {[%clk 0:01:33]}  Qf4+ {[%clk 0:01:06]} 34. Kh1 {[%clk 0:01:32]}  Rd2 {[%clk 0:01:03]} 35. Rg2 {[%clk 0:01:28]}  Rxc2 {[%clk 0:01:02]} 36. Rxc2 {[%clk 0:01:28]}  Qxe4 {[%clk 0:01:02]} 37. fxe4 {[%clk 0:01:27]}  Rxf1+ {[%clk 0:01:01]} 38. Kg2 {[%clk 0:01:28]}  Rf4 {[%clk 0:01:00]} 39. Re2 {[%clk 0:01:27]}  Kg8 {[%clk 0:00:54]} 40. Kg1 {[%clk 0:01:19]}  Kf7 {[%clk 0:00:53]} 41. Kg2 {[%clk 0:01:20]}  Ke7 {[%clk 0:00:50]} 42. Kg1 {[%clk 0:01:20]}  Kd7 {[%clk 0:00:50]} 43. Kg2 {[%clk 0:01:19]}  Kc7 {[%clk 0:00:50]} 44. Kg1 {[%clk 0:01:19]}  Kb7 {[%clk 0:00:49]} 45. Kg2 {[%clk 0:01:19]}  b5 {[%clk 0:00:49]} 46. cxb5 {[%clk 0:01:17]}  axb5 {[%clk 0:00:45]} 47. axb5 {[%clk 0:01:13]}  Kb6 {[%clk 0:00:44]} 48. Kg1 {[%clk 0:01:13]}  Kxb5 {[%clk 0:00:44]} 49. Kg2 {[%clk 0:01:13]}  Kb4 {[%clk 0:00:43]} 50. Re3 {[%clk 0:01:04]}  Rf2+ {[%clk 0:00:42]} 51. Kg1 {[%clk 0:01:04]}  Rb2 {[%clk 0:00:42]} 52. Rf3 {[%clk 0:01:02]}  Rxb3 {[%clk 0:00:41]} 53. Rf7 {[%clk 0:01:01]}  c4 {[%clk 0:00:41]} 54. Rd7 {[%clk 0:00:59]}  c3 {[%clk 0:00:41]} 55. Rxd6 {[%clk 0:00:59]}  c2 {[%clk 0:00:41]} 56. Rc6 {[%clk 0:00:59]}  Rc3 {[%clk 0:00:41]} 57. Rb6+ {[%clk 0:00:57]}  Ka5 {[%clk 0:00:41]} 0-1


[Site "https://www.chess.com"]

[Event "Titled Tuesday Blitz October 25 Late 2022"]
[White "Borisova, Ekaterina"]
[Black "Sabar, Ethmane Daouda"]
[WhiteFideId "34124184"]
[BlackFideId "19600097"]
[WhiteElo "2134"]
[BlackElo "1950"]
[Result "1-0"]
[Round "03"]
[TimeControl "180+1"]
[Date "2022.10.26"]
[WhiteClock "0:01:05"]
[BlackClock "0:00:18"]

1. d4 {[%clk 0:02:59]}  d5 {[%clk 0:02:58]} 2. c4 {[%clk 0:02:59]}  e5 {[%clk 0:02:58]} 3. dxe5 {[%clk 0:03:00]}  d4 {[%clk 0:02:59]} 4. Nf3 {[%clk 0:03:00]}  Nc6 {[%clk 0:02:59]} 5. Nbd2 {[%clk 0:03:01]}  Bg4 {[%clk 0:02:58]} 6. h3 {[%clk 0:03:00]}  Bh5 {[%clk 0:02:58]} 7. g4 {[%clk 0:03:00]}  Bg6 {[%clk 0:02:58]} 8. Bg2 {[%clk 0:02:57]}  Qe7 {[%clk 0:02:57]} 9. a3 {[%clk 0:02:55]}  O-O-O {[%clk 0:02:57]} 10. O-O {[%clk 0:02:50]}  Nxe5 {[%clk 0:02:46]} 11. Nxe5 {[%clk 0:02:42]}  Qxe5 {[%clk 0:02:47]} 12. Nf3 {[%clk 0:02:37]}  Qe6 {[%clk 0:02:18]} 13. Qa4 {[%clk 0:01:53]}  Kb8 {[%clk 0:02:13]} 14. Bf4 {[%clk 0:01:37]}  Nf6 {[%clk 0:02:08]} 15. Rad1 {[%clk 0:01:31]}  d3 {[%clk 0:01:23]} 16. exd3 {[%clk 0:01:25]}  Rxd3 {[%clk 0:01:24]} 17. Rfe1 {[%clk 0:01:18]}  Qc8 {[%clk 0:00:21]} 18. Rxd3 {[%clk 0:01:12]}  Bxd3 {[%clk 0:00:22]} 19. g5 {[%clk 0:01:07]}  Nh5 {[%clk 0:00:18]} 20. Re8 {[%clk 0:01:05]} 1-0


[Site "https://www.chess.com"]